fUSD/lending_fUSD_20240527
["ID","MTS","AMOUNT","RATE_DAILY","PERIOD"]
[328013041,1716773473846,-1359.95,0.00028219,4]
[328013042,1716773473855,-500.0,0.00028219,4]
[328013043,1716773473866,-777.55,0.00028219,4]
[328013044,1716773473875,-500.0,0.00028219,4]
[328013045,1716773473884,-955.96,0.00028219,4]
[328013046,1716773473894,-500.0,0.00028219,4]
[328013047,1716773473906,-590.73,0.00028219,4]
[328013048,1716773473915,-500.0,0.00028219,4]
[328013049,1716773473925,-500.0,0.00028219,4]
[328013050,1716773473934,-824.44,0.00028219,4]
[328013051,1716773473943,-1899.17,0.00028219,4]
[328013052,1716773473953,-500.0,0.00028219,4]
[328013053,1716773473963,-500.0,0.00028219,4]
[328013054,1716773473972,-709.3,0.00028219,4]
[328013055,1716773473981,-726.34,0.00028219,4]
[328013056,1716773473990,-1522.47,0.00028219,4]
[328013057,1716773474000,-500.0,0.00028219,4]
[328013058,1716773474010,-1111.07,0.00028219,4]
[328013059,1716773474020,-6862.17,0.00028219,4]
[328013060,1716773474029,-500.0,0.00028219,4]
[328013061,1716773474038,-500.0,0.00028219,4]
[328013062,1716773474048,-1636.35,0.00028219,4]
[328013063,1716773474058,-977.11,0.00028219,4]
[328013064,1716773474068,-1153.21,0.00028219,4]
[328013065,1716773474077,-879.18,0.00028219,4]
[328013066,1716773474087,-688.44,0.00028219,4]
[328013067,1716773474097,-706.27,0.00028219,4]
[328013068,1716773474107,-170.07992653,0.00028219,4]
[328013069,1716773474116,-500.0,0.00028219,4]
[328013070,1716773474126,-500.0,0.00028219,4]
[328013071,1716773474136,-1139.88,0.00028219,4]
[328013072,1716773474145,-500.0,0.00028219,4]
[328013073,1716773474155,-500.0,0.00028219,4]
[328013074,1716773474164,-500.0,0.00028219,4]
[328013075,1716773474174,-1445.7,0.00028219,4]
[328013076,1716773474184,-500.0,0.00028219,4]
[328013077,1716773474193,-818.95,0.00028219,4]
[328013078,1716773474203,-2130.92,0.00028219,4]
[328013079,1716773474212,-500.0,0.00028219,4]
[328013080,1716773474222,-500.0,0.00028219,4]
[328013081,1716773474232,-3583.63,0.00028219,4]
[328013082,1716773474243,-5398.85,0.00028219,4]
[328013083,1716773474253,-874.92,0.00028219,4]
[328013084,1716773474262,-1049.53,0.00028219,4]
[328013085,1716773474272,-500.0,0.00028219,4]
[328013086,1716773474282,-544.1795045,0.00028219,4]
[328013087,1716773474292,-6155.22,0.00028219,4]
[328013088,1716773474302,-2307.64,0.00028219,4]
[328013089,1716773474312,-500.0,0.00028219,4]
[328013090,1716773474322,-500.0,0.00028219,4]
[328013091,1716773474331,-647.85,0.00028219,4]
[328013092,1716773474341,-500.0,0.00028219,4]
[328013093,1716773474351,-500.0,0.00028219,4]
[328013094,1716773474361,-1590.14,0.00028219,4]
[328013095,1716773474370,-1987.82,0.00028219,4]
[328013096,1716773474381,-4196.44,0.00028219,4]
[328013097,1716773474391,-500.0,0.00028219,4]
[328013098,1716773474400,-500.0,0.00028219,4]
[328013099,1716773474411,-1672.39,0.00028219,4]
[328013100,1716773474421,-1529.19,0.00028219,4]
[328013101,1716773474431,-500.0,0.00028219,4]
[328013102,1716773474441,-500.0,0.00028219,4]
[328013103,1716773474450,-1357.3,0.00028219,4]
[328013104,1716773474460,-500.0,0.00028219,4]
[328013105,1716773474469,-3193.96,0.00028219,4]
[328013106,1716773474479,-500.0,0.00028219,4]
[328013107,1716773474488,-2967.77,0.00028219,4]
[328013108,1716773474498,-500.0,0.00028219,4]
[328013109,1716773474508,-500.0,0.00028219,4]
[328013110,1716773474517,-500.0,0.00028219,4]
[328013111,1716773474527,-1331.17,0.00028219,4]
[328013112,1716773474537,-953.21,0.00028219,4]
[328013113,1716773474546,-500.0,0.00028219,4]
[328013114,1716773474556,-683.81,0.00028219,4]
[328013115,1716773474565,-621.07,0.00028219,4]
[328013116,1716773474575,-3518.53,0.00028219,4]
[328013117,1716773474584,-500.0,0.00028219,4]
[328013118,1716773474594,-707.14,0.00028219,4]
[328013119,1716773474604,-500.0,0.00028219,4]
[328013120,1716773474780,-1400.41,0.00028219,4]
[328013121,1716773474791,-500.0,0.00028219,4]
[328013122,1716773474801,-500.0,0.00028219,4]
[328013123,1716773474812,-1255.06,0.00028219,4]
[328013124,1716773474825,-500.0,0.00028219,4]
[328013125,1716773474835,-500.0,0.00028219,4]
[328013126,1716773474845,-500.0,0.00028219,4]
[328013127,1716773474854,-2187.31,0.00028219,4]
[328013128,1716773474865,-500.0,0.00028219,4]
[328013129,1716773474875,-1098.66,0.00028219,4]
[328013130,1716773474884,-919.68,0.00028219,4]
[328013131,1716773474893,-2106.55,0.00028219,4]
[328013132,1716773474905,-2336.3,0.00028219,4]
[328013133,1716773474914,-500.0,0.00028219,4]
[328013134,1716773474926,-500.0,0.00028219,4]
[328013135,1716773474936,-533.59703763,0.00028219,4]
[328013136,1716773474945,-1415.86,0.00028219,4]
[328013137,1716773474956,-1637.74,0.00028219,4]
[328013138,1716773474966,-609.84,0.00028219,4]
[328013139,1716773474976,-500.0,0.00028219,4]
[328013140,1716773474985,-912.06,0.00028219,4]
[328013141,1716773474994,-500.0,0.00028219,4]
[328013142,1716773475004,-500.0,0.00028219,4]
[328013143,1716773475013,-1275.52,0.00028219,4]
[328013144,1716773475023,-500.0,0.00028219,4]
[328013145,1716773475033,-1558.22,0.00028219,4]
[328013146,1716773475043,-500.0,0.00028219,4]
[328013147,1716773475052,-500.0,0.00028219,4]
[328013148,1716773475062,-500.0,0.00028219,4]
[328013149,1716773475071,-310.15584292,0.00028219,4]
[328013150,1716773475080,-3246.02,0.00028219,4]
[328013151,1716773475089,-1094.9,0.00028219,4]
[328013152,1716773475099,-500.0,0.00028219,4]
[328013153,1716773475109,-537.01,0.00028219,4]
[328013154,1716773475119,-500.0,0.00028219,4]
[328013155,1716773475128,-500.0,0.00028219,4]
[328013156,1716773475138,-500.0,0.00028219,4]
[328013157,1716773475148,-500.0,0.00028219,4]
[328013158,1716773475158,-999.12,0.00028219,4]
[328013159,1716773475167,-500.0,0.00028219,4]
[328013160,1716773475177,-593.71,0.00028219,4]
[328013161,1716773475187,-500.0,0.00028219,4]
[328013162,1716773475197,-500.0,0.00028219,4]
[328013163,1716773475207,-500.0,0.00028219,4]
[328013164,1716773475216,-510.96,0.00028219,4]
[328013165,1716773475226,-500.0,0.00028219,4]
[328013166,1716773475237,-1146.79,0.00028219,4]
[328013167,1716773475246,-1494.94,0.00028219,4]
[328013168,1716773475256,-500.0,0.00028219,4]
[328013169,1716773475265,-1156.39,0.00028219,4]
[328013170,1716773475276,-637.81011931,0.00028219,4]
[328013171,1716773475286,-500.0,0.00028219,4]
[328013172,1716773475296,-500.0,0.00028219,4]
[328013173,1716773475305,-500.0,0.00028219,4]
[328013174,1716773475315,-3014.19,0.00028219,4]
[328013175,1716773475325,-515.33697717,0.00028219,4]
[328013176,1716773475334,-500.0,0.00028219,4]
[328013177,1716773475344,-500.0,0.00028219,4]
[328013178,1716773475354,-766.93,0.00028219,4]
[328013179,1716773475364,-510.86428317,0.00028219,4]
[328013180,1716773475373,-500.0,0.00028219,4]
[328013181,1716773475383,-500.0,0.00028219,4]
[328013182,1716773475392,-1271.17,0.00028219,4]
[328013183,1716773475403,-500.0,0.00028219,4]
[328013184,1716773475412,-500.0,0.00028219,4]
[328013185,1716773475422,-500.0,0.00028219,4]
[328013186,1716773475432,-500.0,0.00028219,4]
[328013187,1716773475441,-500.0,0.00028219,4]
[328013188,1716773475451,-7504.54,0.00028219,4]
[328013189,1716773475460,-500.0,0.00028219,4]
[328013190,1716773475470,-500.0,0.00028219,4]
[328013191,1716773475479,-500.0,0.00028219,4]
[328013192,1716773475489,-511.3053162,0.00028219,4]
[328013193,1716773475498,-289.15308192,0.00028219,4]
[328013194,1716773475508,-410.21580804,0.00028219,4]
[328013195,1716773475517,-500.0,0.00028219,4]
[328013196,1716773475527,-500.0,0.00028219,4]
[328013197,1716773475536,-500.0,0.00028219,4]
[328013198,1716773475546,-500.0,0.00028219,4]
[328013199,1716773475555,-200.0,0.00028227,2]
[328013200,1716773475565,-155.0,0.00028398,2]
[328013201,1716773475574,-500.0,0.00028472,4]
[328013202,1716773475584,-11997.6378185,0.00028473,2]
[328013203,1716773475593,-2617.2101079,0.00028473,2]
[328013204,1716773475603,-1580.4743514,0.00028473,2]
[328013205,1716773475613,-2456.5167819,0.00028473,2]
[328013206,1716773475622,-500.0,0.00028492,4]
[328013207,1716773475631,-500.0,0.00028492,4]
[328013208,1716773475641,-150.0,0.00028492,2]
[328013209,1716773475651,-500.0,0.00028493,4]
[328013210,1716773475660,-500.0,0.00028493,4]
[328013211,1716773475669,-500.0,0.00028493,4]
[328013212,1716773475679,-500.0,0.00028493,4]
[328013213,1716773475689,-500.0,0.00028493,4]
[328013214,1716773475699,-500.0,0.00028493,4]
[328013215,1716773475709,-500.0,0.00028493,4]
[328013216,1716773475718,-500.0,0.00028493,4]
[328013217,1716773475730,-500.0,0.00028493,4]
[328013218,1716773475739,-695.36,0.00028493,4]
[328013219,1716773475749,-500.0,0.00028493,4]
[328013220,1716773475758,-500.0,0.00028493,4]
[328013221,1716773475769,-500.0,0.00028493,4]
[328013222,1716773475780,-500.0,0.00028493,4]
[328013223,1716773475789,-500.0,0.00028493,4]
[328013224,1716773475798,-500.0,0.00028493,4]
[328013225,1716773475808,-500.0,0.00028493,4]
[328013226,1716773475818,-550.54,0.00028493,4]
[328013227,1716773475831,-500.0,0.00028493,4]
[328013228,1716773475841,-500.0,0.00028493,4]
[328013229,1716773475851,-500.0,0.00028493,4]
[328013230,1716773475861,-500.0,0.00028493,4]
[328013231,1716773475871,-500.0,0.00028493,4]
[328013232,1716773475881,-500.0,0.00028493,4]
[328013233,1716773475891,-736.3,0.00028493,4]
[328013234,1716773475901,-500.0,0.00028493,4]
[328013235,1716773475911,-500.0,0.00028493,4]
[328013236,1716773475920,-500.0,0.00028493,4]
[328013237,1716773475929,-500.0,0.00028493,4]
[328013238,1716773475940,-500.0,0.00028493,4]
[328013239,1716773475949,-500.0,0.00028493,4]
[328013240,1716773475958,-500.0,0.00028493,4]
[328013241,1716773475967,-500.0,0.00028493,4]
[328013242,1716773475977,-500.0,0.00028493,4]
[328013243,1716773475987,-500.0,0.00028493,4]
[328013244,1716773475996,-500.0,0.00028493,4]
[328013245,1716773476005,-500.0,0.00028493,4]
[328013246,1716773476015,-500.0,0.00028493,4]
[328013247,1716773476024,-500.0,0.00028493,4]
[328013248,1716773476033,-388.75585183,0.00028493,4]
[328013249,1716773476042,-500.0,0.00028493,4]
[328013250,1716773476052,-500.0,0.00028493,4]
[328013251,1716773476061,-235.44684786,0.00028493,4]
[328013252,1716773476070,-500.0,0.00028493,4]
[328013253,1716773476080,-500.0,0.00028493,4]
[328013254,1716773476089,-500.0,0.00028493,4]
[328013255,1716773476099,-500.0,0.00028493,4]
[328013256,1716773476109,-500.0,0.00028493,4]
[328013257,1716773476119,-500.0,0.00028493,4]
[328013258,1716773476128,-500.0,0.00028493,4]
[328013259,1716773476138,-763.53,0.00028493,4]
[328013260,1716773476148,-500.0,0.00028493,4]
[328013261,1716773476157,-500.0,0.00028493,4]
[328013262,1716773476166,-500.0,0.00028493,4]
[328013263,1716773476176,-500.0,0.00028493,4]
[328013264,1716773476188,-500.0,0.00028493,4]
[328013265,1716773476197,-500.0,0.00028493,4]
[328013266,1716773476207,-500.0,0.00028493,4]
[328013267,1716773476216,-500.0,0.00028493,4]
[328013268,1716773476226,-500.0,0.00028493,4]
[328013269,1716773476236,-553.25230869,0.00028493,4]
[328013270,1716773476245,-500.0,0.00028493,4]
[328013271,1716773476255,-500.0,0.00028493,4]
[328013272,1716773476265,-500.0,0.00028493,4]
[328013273,1716773476274,-500.0,0.00028493,4]
[328013274,1716773476284,-500.0,0.00028493,4]
[328013275,1716773476294,-500.0,0.00028493,4]
[328013276,1716773476304,-500.0,0.00028493,4]
[328013277,1716773476313,-500.0,0.00028493,4]
[328013278,1716773476323,-500.0,0.00028493,4]
[328013279,1716773476333,-500.0,0.00028493,4]
[328013280,1716773476343,-500.0,0.00028493,4]
[328013281,1716773476355,-500.0,0.00028493,4]
[328013282,1716773476364,-500.0,0.00028493,4]
[328013283,1716773476373,-500.0,0.00028493,4]
[328013284,1716773476383,-500.0,0.00028493,4]
[328013285,1716773476393,-500.0,0.00028493,4]
[328013286,1716773476403,-500.0,0.00028493,4]
[328013287,1716773476412,-500.0,0.00028493,4]
[328013288,1716773476422,-500.0,0.00028493,4]
[328013289,1716773476431,-500.0,0.00028493,4]
[328013290,1716773476441,-150.0,0.00028493,4]
[328013291,1716773476450,-500.0,0.00028493,4]
[328013292,1716773476460,-500.0,0.00028493,4]
[328013293,1716773476469,-500.0,0.00028493,4]
[328013294,1716773476479,-500.0,0.00028493,4]
[328013295,1716773476488,-500.0,0.00028493,4]
[328013296,1716773476497,-500.0,0.00028493,4]
[328013297,1716773476507,-500.0,0.00028493,4]
[328013298,1716773476516,-500.0,0.00028493,4]
[328013299,1716773476526,-500.0,0.00028493,4]
[328013300,1716773476536,-500.0,0.00028493,4]
[328013301,1716773476546,-500.0,0.00028493,4]
[328013302,1716773476555,-509.3,0.00028493,4]
[328013303,1716773476565,-500.0,0.00028493,4]
[328013304,1716773476575,-500.0,0.00028493,4]
[328013305,1716773476584,-500.0,0.00028493,4]
[328013306,1716773476593,-500.0,0.00028493,4]
[328013307,1716773476603,-500.0,0.00028493,4]
[328013308,1716773476613,-500.0,0.00028493,4]
[328013309,1716773476622,-500.0,0.00028493,4]
[328013310,1716773476631,-500.0,0.00028493,4]
[328013311,1716773476640,-500.0,0.00028493,4]
[328013312,1716773476649,-500.0,0.00028493,4]
[328013313,1716773476659,-500.0,0.00028493,4]
[328013314,1716773476668,-500.0,0.00028493,4]
[328013315,1716773476677,-500.0,0.00028493,4]
[328013316,1716773476687,-500.0,0.00028493,4]
[328013317,1716773476696,-618.09,0.00028493,4]
[328013318,1716773476705,-500.0,0.00028493,4]
[328013319,1716773476714,-621.296299,0.00028493,4]
[328013320,1716773476724,-500.0,0.00028493,4]
[328013321,1716773476733,-500.0,0.00028493,4]
[328013322,1716773476743,-500.0,0.00028493,4]
[328013323,1716773476752,-500.0,0.00028493,4]
[328013324,1716773476762,-500.0,0.00028493,4]
[328013325,1716773476771,-500.0,0.00028493,4]
[328013326,1716773476780,-500.0,0.00028493,4]
[328013327,1716773476789,-500.0,0.00028493,4]
[328013328,1716773476799,-500.0,0.00028493,4]
[328013329,1716773476808,-500.0,0.00028493,4]
[328013330,1716773476817,-500.0,0.00028493,4]
[328013331,1716773476832,-500.0,0.00028493,4]
[328013332,1716773476841,-509.22871842,0.00028493,4]
[328013333,1716773476850,-500.0,0.00028493,4]
[328013334,1716773476859,-500.0,0.00028493,4]
[328013335,1716773476871,-250.57072782,0.00028493,4]
[328013336,1716773476880,-500.0,0.00028493,4]
[328013337,1716773476889,-500.0,0.00028493,4]
[328013338,1716773476898,-500.0,0.00028493,4]
[328013339,1716773476909,-500.0,0.00028493,4]
[328013340,1716773476919,-500.0,0.00028493,4]
[328013341,1716773476928,-500.0,0.00028493,4]
[328013342,1716773476936,-500.0,0.00028493,4]
[328013343,1716773476946,-500.0,0.00028493,4]
[328013344,1716773476955,-500.0,0.00028493,4]
[328013345,1716773476964,-500.0,0.00028493,4]
[328013346,1716773477099,-300.0,0.00028493,4]
[328013347,1716773477109,-500.0,0.00028493,4]
[328013348,1716773477119,-500.0,0.00028493,4]
[328013349,1716773477128,-500.0,0.00028493,4]
[328013350,1716773477137,-525.03,0.00028493,4]
[328013351,1716773477146,-500.0,0.00028493,4]
[328013352,1716773477155,-500.0,0.00028493,4]
[328013353,1716773477164,-500.0,0.00028493,4]
[328013354,1716773477174,-500.0,0.00028493,4]
[328013355,1716773477183,-500.0,0.00028493,4]
[328013356,1716773477192,-500.0,0.00028493,4]
[328013357,1716773477201,-500.0,0.00028493,4]
[328013358,1716773477210,-500.0,0.00028493,4]
[328013359,1716773477219,-539.9,0.00028493,4]
[328013360,1716773477228,-657.09,0.00028493,4]
[328013361,1716773477237,-500.0,0.00028493,4]
[328013362,1716773477246,-316.33833315,0.00028493,4]
[328013363,1716773477255,-500.0,0.00028493,4]
[328013364,1716773477265,-500.0,0.00028493,4]
[328013365,1716773477274,-500.0,0.00028493,4]
[328013366,1716773477284,-500.0,0.00028493,4]
[328013367,1716773477292,-500.0,0.00028493,4]
[328013368,1716773477302,-500.0,0.00028493,4]
[328013369,1716773477311,-500.0,0.00028493,4]
[328013370,1716773477321,-500.0,0.00028493,4]
[328013371,1716773477330,-500.0,0.00028493,4]
[328013372,1716773477340,-500.0,0.00028493,4]
[328013373,1716773477349,-500.0,0.00028493,4]
[328013374,1716773477359,-500.0,0.00028493,4]
[328013375,1716773477368,-500.0,0.00028493,4]
[328013376,1716773477377,-750.33,0.00028493,4]
[328013377,1716773477387,-500.0,0.00028493,4]
[328013378,1716773477397,-500.0,0.00028493,4]
[328013379,1716773477406,-500.0,0.00028493,4]
[328013380,1716773477416,-500.0,0.00028493,4]
[328013381,1716773477427,-743.01,0.00028493,4]
[328013382,1716773477436,-500.0,0.00028493,4]
[328013383,1716773477446,-500.0,0.00028493,4]
[328013384,1716773477455,-500.0,0.00028493,4]
[328013385,1716773477464,-500.0,0.00028493,4]
[328013386,1716773477473,-259.29525883,0.00028493,4]
[328013387,1716773477483,-500.0,0.00028493,4]
[328013388,1716773477492,-500.0,0.00028493,4]
[328013389,1716773477502,-500.0,0.00028493,4]
[328013390,1716773477511,-500.0,0.00028493,4]
[328013391,1716773477520,-613.12,0.00028493,4]
[328013392,1716773477529,-500.0,0.00028493,4]
[328013393,1716773477538,-500.0,0.00028493,4]
[328013394,1716773477547,-500.0,0.00028493,4]
[328013395,1716773477557,-500.0,0.00028493,4]
[328013396,1716773477566,-500.0,0.00028493,4]
[328013397,1716773477575,-500.0,0.00028493,4]
[328013398,1716773477584,-514.26519178,0.00028493,4]
[328013399,1716773477593,-500.0,0.00028493,4]
[328013400,1716773477603,-500.0,0.00028493,4]
[328013401,1716773477612,-500.0,0.00028493,4]
[328013402,1716773477621,-500.0,0.00028493,4]
[328013403,1716773477630,-500.0,0.00028493,4]
[328013404,1716773477639,-500.0,0.00028493,4]
[328013405,1716773477648,-674.79,0.00028493,4]
[328013406,1716773477657,-500.0,0.00028493,4]
[328013407,1716773477666,-500.0,0.00028493,4]
[328013408,1716773477676,-500.0,0.00028493,4]
[328013409,1716773477685,-500.0,0.00028493,4]
[328013410,1716773477695,-500.0,0.00028493,4]
[328013411,1716773477703,-500.0,0.00028493,4]
[328013412,1716773477712,-500.0,0.00028493,4]
[328013413,1716773477722,-637.71,0.00028493,4]
[328013414,1716773477731,-500.0,0.00028493,4]
[328013415,1716773477739,-500.0,0.00028493,4]
[328013416,1716773477748,-500.0,0.00028493,4]
[328013417,1716773477757,-610.35,0.00028493,4]
[328013418,1716773477766,-565.63,0.00028493,4]
[328013419,1716773477775,-500.0,0.00028493,4]
[328013420,1716773477784,-500.0,0.00028493,4]
[328013421,1716773477793,-500.0,0.00028493,4]
[328013422,1716773477803,-500.0,0.00028493,4]
[328013423,1716773477812,-500.0,0.00028493,4]
[328013424,1716773477825,-1112.41,0.00028493,4]
[328013425,1716773477836,-500.0,0.00028493,4]
[328013426,1716773477845,-500.0,0.00028493,4]
[328013427,1716773477855,-518.47,0.00028493,4]
[328013428,1716773477865,-500.0,0.00028493,4]
[328013429,1716773477874,-500.0,0.00028493,4]
[328013430,1716773477883,-500.0,0.00028493,4]
[328013431,1716773477892,-820.24,0.00028493,4]
[328013432,1716773477904,-500.0,0.00028493,4]
[328013433,1716773477913,-500.0,0.00028493,4]
[328013434,1716773477922,-500.0,0.00028493,4]
[328013435,1716773477932,-500.0,0.00028493,4]
[328013436,1716773477941,-500.0,0.00028493,4]
[328013437,1716773477950,-500.0,0.00028493,4]
[328013438,1716773477959,-500.0,0.00028493,4]
[328013439,1716773477968,-813.92,0.00028493,4]
[328013440,1716773477977,-500.0,0.00028493,4]
[328013441,1716773477986,-500.0,0.00028493,4]
[328013442,1716773477996,-500.0,0.00028493,4]
[328013443,1716773478005,-500.0,0.00028493,4]
[328013444,1716773478015,-500.0,0.00028493,4]
[328013445,1716773478024,-500.0,0.00028493,4]
[328013446,1716773478033,-500.0,0.00028493,4]
[328013447,1716773478042,-500.0,0.00028493,4]
[328013448,1716773478051,-500.0,0.00028493,4]
[328013449,1716773478060,-1135.33,0.00028493,4]
[328013450,1716773478069,-1037.2,0.00028493,4]
[328013451,1716773478079,-500.0,0.00028493,4]
[328013452,1716773478088,-1002.02,0.00028493,4]
[328013453,1716773478097,-500.0,0.00028493,4]
[328013454,1716773478107,-500.0,0.00028493,4]
[328013455,1716773478116,-696.41,0.00028493,4]
[328013456,1716773478125,-500.0,0.00028493,4]
[328013457,1716773478134,-526.63,0.00028493,4]
[328013458,1716773478143,-500.0,0.00028493,4]
[328013459,1716773478152,-500.0,0.00028493,4]
[328013460,1716773478161,-500.0,0.00028493,4]
[328013461,1716773478171,-566.26,0.00028493,4]
[328013462,1716773478187,-659.81,0.00028493,4]
[328013463,1716773478208,-724.95,0.00028493,4]
[328013464,1716773478217,-715.24,0.00028493,4]
[328013465,1716773478226,-500.0,0.00028493,4]
[328013466,1716773478236,-500.0,0.00028493,4]
[328013467,1716773478245,-500.0,0.00028493,4]
[328013468,1716773478255,-500.0,0.00028493,4]
[328013469,1716773478264,-500.0,0.00028493,4]
[328013470,1716773478273,-537.11,0.00028493,4]
[328013471,1716773478282,-500.0,0.00028493,4]
[328013472,1716773478291,-500.0,0.00028493,4]
[328013473,1716773478301,-1115.92,0.00028493,4]
[328013474,1716773478310,-500.0,0.00028493,4]
[328013475,1716773478319,-514.34,0.00028493,4]
[328013476,1716773478328,-500.0,0.00028493,4]
[328013477,1716773478338,-500.0,0.00028493,4]
[328013478,1716773478348,-500.0,0.00028493,4]
[328013479,1716773478357,-500.0,0.00028493,4]
[328013480,1716773478367,-500.0,0.00028493,4]
[328013481,1716773478376,-500.0,0.00028493,4]
[328013482,1716773478385,-500.0,0.00028493,4]
[328013483,1716773478394,-500.0,0.00028493,4]
[328013484,1716773478403,-500.0,0.00028493,4]
[328013485,1716773478416,-500.0,0.00028493,4]
[328013486,1716773478426,-1161.05,0.00028493,4]
[328013487,1716773478435,-500.0,0.00028493,4]
[328013488,1716773478444,-657.79,0.00028493,4]
[328013489,1716773478453,-500.0,0.00028493,4]
[328013490,1716773478462,-500.0,0.00028493,4]
[328013491,1716773478471,-500.0,0.00028493,4]
[328013492,1716773478480,-500.0,0.00028493,4]
[328013493,1716773478489,-513.43,0.00028493,4]
[328013494,1716773478498,-563.52,0.00028493,4]
[328013495,1716773478507,-553.3,0.00028493,4]
[328013496,1716773478516,-500.0,0.00028493,4]
[328013497,1716773478525,-500.0,0.00028493,4]
[328013498,1716773478534,-590.37,0.00028493,4]
[328013499,1716773478547,-500.0,0.00028493,4]
[328013500,1716773478556,-500.0,0.00028493,4]
[328013501,1716773478564,-500.0,0.00028493,4]
[328013502,1716773478574,-500.0,0.00028493,4]
[328013503,1716773478583,-500.0,0.00028493,4]
[328013504,1716773478591,-500.0,0.00028493,4]
[328013505,1716773478600,-500.0,0.00028493,4]
[328013506,1716773478609,-500.0,0.00028493,4]
[328013507,1716773478619,-677.81,0.00028493,4]
[328013508,1716773478628,-640.38,0.00028493,4]
[328013509,1716773478636,-500.0,0.00028493,4]
[328013510,1716773478646,-500.0,0.00028493,4]
[328013511,1716773478656,-500.0,0.00028493,4]
[328013512,1716773478665,-689.4,0.00028493,4]
[328013513,1716773478675,-500.0,0.00028493,4]
[328013514,1716773478684,-500.0,0.00028493,4]
[328013515,1716773478693,-500.0,0.00028493,4]
[328013516,1716773478702,-500.0,0.00028493,4]
[328013517,1716773478711,-500.0,0.00028493,4]
[328013518,1716773478724,-500.0,0.00028493,4]
[328013519,1716773478732,-566.57,0.00028493,4]
[328013520,1716773478742,-1225.47,0.00028493,4]
[328013521,1716773478751,-921.84,0.00028493,4]
[328013522,1716773478760,-500.0,0.00028493,4]
[328013523,1716773478769,-500.0,0.00028493,4]
[328013524,1716773478779,-652.09,0.00028493,4]
[328013525,1716773478788,-500.0,0.00028493,4]
[328013526,1716773478798,-500.0,0.00028493,4]
[328013527,1716773478807,-796.9,0.00028493,4]
[328013528,1716773478818,-531.92,0.00028493,4]
[328013529,1716773478829,-500.0,0.00028493,4]
[328013530,1716773478839,-500.0,0.00028493,4]
[328013531,1716773478848,-500.0,0.00028493,4]
[328013532,1716773478859,-500.0,0.00028493,4]
[328013533,1716773478868,-500.0,0.00028493,4]
[328013534,1716773478878,-911.01,0.00028493,4]
[328013535,1716773478887,-500.0,0.00028493,4]
[328013536,1716773478899,-1333.61,0.00028493,4]
[328013537,1716773478909,-500.0,0.00028493,4]
[328013538,1716773478919,-641.37,0.00028493,4]
[328013539,1716773478928,-500.0,0.00028493,4]
[328013540,1716773478938,-500.0,0.00028493,4]